Workbook

Sheet 翻译第一志愿
A1: 序号 | B1: 考生编号 | C1: 姓名 | D1: 笔试成绩 | E1: 面试成绩 | F1: 复试总成绩百分制 | G1: 复试成绩百分制*50% | H1: 初试成绩 | I1: 初试成绩百分制 | J1: 初试成绩百分制*50% | K1: 总成绩 | L1: 备注
A2: 1 | B2: 114149137032796 | C2: 丁添琪 | F2: 88.5 | G2: =F2*0.5 -> 44.3 | H2: 390 | I2: =H2/5 -> 78 | J2: =I2*0.5 -> 39 | K2: =G2+J2 -> 83.3 | L2: 参加我院招生宣传，根据协议直接预录取
A3: 2 | B3: 114149111641342 | C3: 胡庆睿 | F3: 87.0 | G3: 43.5 | H3: 385 | I3: 77 | J3: 38.5 | K3: 82.0 | L3: 参加我院招生宣传，根据协议直接预录取
A4: 3 | B4: 114149111641323 | C4: 彭天一 | F4: 83.0 | G4: 41.5 | H4: 402 | I4: 80.4 | J4: 40.2 | K4: 81.7 | L4: 参加我院招生宣传，根据协议直接预录取
A5: 4 | B5: 114149111641321 | C5: 赵鼎尊 | F5: 79.0 | G5: 39.5 | H5: 377 | I5: 75.4 | J5: 37.7 | K5: 77.2 | L5: 参加我院招生宣传，根据协议直接预录取
A6: 5 | B6: 114149111641319 | C6: 王梓莹 | D6: 78.0 | E6: 87.2 | F6: =D6*0.5+E6*0.5 -> 82.6 | G6: 41.3 | H6: 356 | I6: 71.2 | J6: 35.6 | K6: 76.9
A7: 6 | B7: 114149141133119 | C7: 王洒洒 | D7: 68.5 | E7: 82.8 | F7: 75.7 | G7: 37.8 | H7: 382 | I7: 76.4 | J7: 38.2 | K7: 76.0
A8: 7 | B8: 114149113141752 | C8: 杨粉 | D8: 73 | E8: 85 | F8: 79.0 | G8: 39.5 | H8: 361 | I8: 72.2 | J8: 36.1 | K8: 75.6
A9: 8 | B9: 114149134012478 | C9: 朱毅琳 | D9: 65.5 | E9: 89.6 | F9: 77.6 | G9: 38.8 | H9: 365 | I9: 73 | J9: 36.5 | K9: 75.3
A10: 9 | B10: 114149113151783 | C10: 董智丽 | D10: 76 | E10: 72.2 | F10: 74.1 | G10: 37.1 | H10: 380 | I10: 76 | J10: 38 | K10: 75.1
A11: 10 | B11: 114149111641330 | C11: 宋冰冰 | D11: 71 | E11: 83.8 | F11: 77.4 | G11: 38.7 | H11: 359 | I11: 71.8 | J11: 35.9 | K11: 74.6
A12: 11 | B12: 114149113101693 | C12: 张兆悦 | D12: 77.5 | E12: 75.4 | F12: 76.5 | G12: 38.2 | H12: 359 | I12: 71.8 | J12: 35.9 | K12: 74.1
A13: 12 | B13: 114149115271979 | C13: 李丹 | D13: 69 | E13: 79.6 | F13: 74.3 | G13: 37.2 | H13: 359 | I13: 71.8 | J13: 35.9 | K13: 73.1
A14: 13 | B14: 114149137092945 | C14: 刘海萍 | D14: 71 | E14: 71.8 | F14: 71.4 | G14: 35.7 | H14: 372 | I14: 74.4 | J14: 37.2 | K14: 72.9
A15: 14 | B15: 114149137072895 | C15: 张霜 | D15: 64.5 | E15: 82.2 | F15: 73.4 | G15: 36.7 | H15: 362 | I15: 72.4 | J15: 36.2 | K15: 72.9
A16: 15 | B16: 114149134062500 | C16: 权永杰 | F16: 73.0 | G16: 36.5 | H16: 357 | I16: 71.4 | J16: 35.7 | K16: 72.2 | L16: 参加我院招生宣传，根据协议直接预录取
A17: 16 | B17: 114149137062872 | C17: 潘笑笑 | D17: 68.5 | E17: 74.0 | F17: =D17*0.5+E17*0.5 -> 71.3 | G17: 35.6 | H17: 363 | I17: 72.6 | J17: 36.3 | K17: 71.9
A18: 17 | B18: 114149114231950 | C18: 刘明 | D18: 64 | E18: 81 | F18: =D18*0.5+E18*0.5 -> 72.5 | G18: 36.3 | H18: 356 | I18: 71.2 | J18: 35.6 | K18: 71.9
A19: 18 | B19: 114149113201835 | C19: 高美琪 | D19: 69 | E19: 75.2 | F19: =D19*0.5+E19*0.5 -> 72.1 | G19: 36.1 | H19: 356 | I19: 71.2 | J19: 35.6 | K19: 71.7
A20: 19 | B20: 114149141453202 | C20: 黄家琪 | D20: 67.0 | E20: 76.6 | F20: =D20*0.5+E20*0.5 -> 71.8 | G20: 35.9 | H20: 355 | I20: 71 | J20: 35.5 | K20: 71.4

Sheet 翻译第一批调剂
A1: 序号 | B1: 考生编号 | C1: 姓名 | D1: 笔试成绩 | E1: 面试成绩 | F1: 复试总成绩百分制 | G1: 复试成绩百分制*50% | H1: 初试成绩 | I1: 初试成绩百分制 | J1: 初试成绩百分制*50% | K1: 总成绩
A2: 1 | B2: 102719210004536 | C2: 林卓玮 | D2: 82 | E2: 90.4 | F2: =D2*0.5+E2*0.5 -> 86.2 | G2: =F2*0.5 -> 43.1 | H2: 381 | I2: =H2/5 -> 76.2 | J2: =I2*0.5 -> 38.1 | K2: =G2+J2 -> 81.2
A3: 2 | B3: 100319055102096 | C3: 谢诗嘉 | D3: 78.5 | E3: 91 | F3: 84.8 | G3: 42.4 | H3: 380 | I3: 76 | J3: 38 | K3: 80.4
A4: 3 | B4: 105589210116185 | C4: 陈税盟 | D4: 72.5 | E4: 86.2 | F4: 79.4 | G4: 39.7 | H4: 397 | I4: 79.4 | J4: 39.7 | K4: 79.4
A5: 4 | B5: 100319055101242 | C5: 杨嘉欣 | D5: 75 | E5: 88.4 | F5: 81.7 | G5: 40.9 | H5: 384 | I5: 76.8 | J5: 38.4 | K5: 79.3
A6: 5 | B6: 100569019419841 | C6: 张啸 | D6: 77 | E6: 86.6 | F6: 81.8 | G6: 40.9 | H6: 382 | I6: 76.4 | J6: 38.2 | K6: 79.1
A7: 6 | B7: 104869102003117 | C7: 许天晴 | D7: 72.5 | E7: 85 | F7: 78.8 | G7: 39.4 | H7: 390 | I7: 78 | J7: 39 | K7: 78.4
A8: 7 | B8: 102489121912646 | C8: 吴丛 | D8: 71.5 | E8: 84.2 | F8: 77.9 | G8: 38.9 | H8: 389 | I8: 77.8 | J8: 38.9 | K8: 77.8
A9: 8 | B9: 104869102011305 | C9: 卢鑫雅 | D9: 70 | E9: 88 | F9: 79.0 | G9: 39.5 | H9: 383 | I9: 76.6 | J9: 38.3 | K9: 77.8
A10: 9 | B10: 102489121921438 | C10: 张佳薇 | D10: 70 | E10: 88.4 | F10: 79.2 | G10: 39.6 | H10: 380 | I10: 76 | J10: 38 | K10: 77.6
A11: 10 | B11: 104869102011289 | C11: 赵美媛 | D11: 71 | E11: 83.2 | F11: 77.1 | G11: 38.6 | H11: 388 | I11: 77.6 | J11: 38.8 | K11: 77.4
A12: 11 | B12: 102869347013717 | C12: 赵瑞莲 | D12: 72.5 | E12: 81.8 | F12: 77.2 | G12: 38.6 | H12: 387 | I12: 77.4 | J12: 38.7 | K12: 77.3
A13: 12 | B13: 102739000001798 | C13: 李尧尧 | D13: 52 | E13: 92.8 | F13: 72.4 | G13: 36.2 | H13: 410 | I13: 82 | J13: 41 | K13: 77.2
A14: 13 | B14: 102739000001954 | C14: 段宇 | D14: 72.5 | E14: 82.4 | F14: 77.5 | G14: 38.7 | H14: 382 | I14: 76.4 | J14: 38.2 | K14: 76.9
A15: 14 | B15: 103199322213165 | C15: 丁阿雪 | D15: 70 | E15: 85 | F15: 77.5 | G15: 38.8 | H15: 381 | I15: 76.2 | J15: 38.1 | K15: 76.9
A16: 15 | B16: 103199330114090 | C16: 徐梦瑶 | D16: 67 | E16: 86.6 | F16: 76.8 | G16: 38.4 | H16: 379 | I16: 75.8 | J16: 37.9 | K16: 76.3
A17: 16 | B17: 100319055101236 | C17: 贾紫薇 | D17: 68 | E17: 81.8 | F17: 74.9 | G17: 37.5 | H17: 380 | I17: 76 | J17: 38 | K17: 75.5
A18: 17 | B18: 100289130500073 | C18: 白晓蒙 | D18: 56.5 | E18: 85.0 | F18: 70.8 | G18: 35.4 | H18: 399 | I18: 79.8 | J18: 39.9 | K18: 75.3
A19: 18 | B19: 100229510605747 | C19: 张园 | D19: 61 | E19: 85.8 | F19: 73.4 | G19: 36.7 | H19: 383 | I19: 76.6 | J19: 38.3 | K19: 75.0
A20: 19 | B20: 103199500624247 | C20: 王垭鑫 | D20: 65.5 | E20: 82.6 | F20: 74.1 | G20: 37.0 | H20: 378 | I20: 75.6 | J20: 37.8 | K20: 74.8
A21: 20 | B21: 104259540004444 | C21: 刘倩 | D21: 62.0 | E21: 83.4 | F21: 72.7 | G21: 36.4 | H21: 383 | I21: 76.6 | J21: 38.3 | K21: 74.7
A22: 21 | B22: 105589210116165 | C22: 李家秀 | D22: 66.5 | E22: 77 | F22: 71.8 | G22: 35.9 | H22: 386 | I22: 77.2 | J22: 38.6 | K22: 74.5
A23: 22 | B23: 107019611304478 | C23: 张林杰 | D23: 65 | E23: 80.8 | F23: 72.9 | G23: 36.5 | H23: 379 | I23: 75.8 | J23: 37.9 | K23: 74.4
A24: 23 | B24: 105619200010216 | C24: 张琦玥 | D24: 65.5 | E24: 78.2 | F24: 71.9 | G24: 35.9 | H24: 381 | I24: 76.2 | J24: 38.1 | K24: 74.0
A25: 24 | B25: 100289431500047 | C25: 吴泽清 | D25: 56.5 | E25: 87.4 | F25: 72.0 | G25: 36.0 | H25: 380 | I25: 76 | J25: 38 | K25: 74.0
A26: 25 | B26: 101409011008565 | C26: 李文静 | D26: 64 | E26: 79.8 | F26: 71.9 | G26: 36.0 | H26: 380 | I26: 76 | J26: 38 | K26: 74.0
A27: 26 | B27: 101729000000806 | C27: 刘佳樱子 | D27: 55.0 | E27: 84.0 | F27: 69.5 | G27: 34.8 | H27: 388 | I27: 77.6 | J27: 38.8 | K27: 73.6
A28: 27 | B28: 100289431900008 | C28: 周珊 | D28: 59 | E28: 82.6 | F28: 70.8 | G28: 35.4 | H28: 380 | I28: 76 | J28: 38 | K28: 73.4
A29: 28 | B29: 104259540002446 | C29: 闫清波 | D29: 61 | E29: 78.2 | F29: 69.6 | G29: 34.8 | H29: 384 | I29: 76.8 | J29: 38.4 | K29: 73.2
A30: 29 | B30: 104259540004134 | C30: 常雅馨 | D30: 57 | E30: 83 | F30: 70.0 | G30: 35.0 | H30: 381 | I30: 76.2 | J30: 38.1 | K30: 73.1
A31: 30 | B31: 103199320809009 | C31: 操玲玲 | D31: 60 | E31: 78.4 | F31: 69.2 | G31: 34.6 | H31: 382 | I31: 76.4 | J31: 38.2 | K31: 72.8
A32: 31 | B32: 102869110705267 | C32: 姬梦珊 | D32: 55 | E32: 81.8 | F32: 68.4 | G32: 34.2 | H32: 380 | I32: 76 | J32: 38 | K32: 72.2
A33: 32 | B33: 100529111105887 | C33: 辛明 | D33: 58.5 | E33: 69 | F33: 63.8 | G33: 31.9 | H33: 403 | I33: 80.6 | J33: 40.3 | K33: 72.2
A34: 33 | B34: 100289370600094 | C34: 刘会兰 | D34: 53 | E34: 83.8 | F34: 68.4 | G34: 34.2 | H34: 378 | I34: 75.6 | J34: 37.8 | K34: 72.0
A35: 34 | B35: 100689055101533 | C35: 张婷婷 | D35: 46 | E35: 83.2 | F35: 64.6 | G35: 32.3 | H35: 386 | I35: 77.2 | J35: 38.6 | K35: 70.9
A36: 35 | B36: 105619200010396 | C36: 胡秋忆 | D36: 49 | E36: 80 | F36: 64.5 | G36: 32.3 | H36: 383 | I36: 76.6 | J36: 38.3 | K36: 70.6

Sheet 汉语国际教育
A1: 序号 | B1: 考生编号 | C1: 姓名 | D1: 外语成绩 | E1: 面试成绩 | F1: 笔试成绩 | G1: 复试总成绩百分制 | H1: 复试成绩百分制*50% | I1: 初试成绩 | J1: 初试成绩百分制 | K1: 初试成绩百分制*50% | L1: 总成绩 | M1: 备注
A2: 1 | B2: 114149143163370 | C2: 姜迎 | D2: 80.4 | E2: 87.2 | F2: 88.0 | G2: =D2*0.2+E2*0.4+F2*0.4 -> 86.2 | H2: =G2*0.5 -> 43.1 | I2: 375 | J2: =I2/5 -> 75.0 | K2: =J2*0.5 -> 37.5 | L2: =H2+K2 -> 80.6
A3: 2 | B3: 114149135032520 | C3: 陈晓林 | D3: 81.2 | E3: 84.0 | F3: 84.0 | G3: =D3*0.2+E3*0.4+F3*0.4 -> 83.4 | H3: 41.7 | I3: 386 | J3: 77.2 | K3: 38.6 | L3: 80.3
A4: 3 | B4: 114149111641392 | C4: 禹点 | G4: 83.0 | H4: 41.5 | I4: 385 | J4: 77.0 | K4: 38.5 | L4: 80.0 | M4: 参加我院招生宣传，根据协议直接预录取
A5: 4 | B5: 114149113091666 | C5: 赵敏君 | D5: 86.0 | E5: 85.2 | F5: 80.0 | G5: =D5*0.2+E5*0.4+F5*0.4 -> 83.3 | H5: 41.6 | I5: 382 | J5: 76.4 | K5: 38.2 | L5: 79.8
A6: 5 | B6: 114149113041593 | C6: 连昭慧 | D6: 89.6 | E6: 88.2 | F6: 85.0 | G6: 87.2 | H6: 43.6 | I6: 360 | J6: 72.0 | K6: 36.0 | L6: 79.6
A7: 6 | B7: 114149141333186 | C7: 苗青青 | D7: 79.6 | E7: 82.2 | F7: 76.0 | G7: 79.2 | H7: 39.6 | I7: 392 | J7: 78.4 | K7: 39.2 | L7: 78.8
A8: 7 | B8: 114149111640896 | C8: 王湜湿 | D8: 90.4 | E8: 88.6 | F8: 72.0 | G8: 82.3 | H8: 41.2 | I8: 376 | J8: 75.2 | K8: 37.6 | L8: 78.8
A9: 8 | B9: 114149151213589 | C9: 罗煜婷 | D9: 80.0 | E9: 85.4 | F9: 78.0 | G9: 81.4 | H9: 40.7 | I9: 377 | J9: 75.4 | K9: 37.7 | L9: 78.4
A10: 9 | B10: 114149113041594 | C10: 徐苏凡 | D10: 89.0 | E10: 89.2 | F10: 79.5 | G10: 85.3 | H10: 42.6 | I10: 356 | J10: 71.2 | K10: 35.6 | L10: 78.2
A11: 10 | B11: 114149132172436 | C11: 祖晓妍 | D11: 79.4 | E11: 85.4 | F11: 87.0 | G11: 84.8 | H11: 42.4 | I11: 356 | J11: 71.2 | K11: 35.6 | L11: 78.0
A12: 11 | B12: 114149137132980 | C12: 王海娟 | D12: 75.0 | E12: 80.8 | F12: 80.5 | G12: 79.5 | H12: 39.8 | I12: 362 | J12: 72.4 | K12: 36.2 | L12: 76.0
A13: 12 | B13: 114149113031580 | C13: 张笑雨 | D13: 73.0 | E13: 84.6 | F13: 79.5 | G13: 80.2 | H13: 40.1 | I13: 357 | J13: 71.4 | K13: 35.7 | L13: 75.8
A14: 13 | B14: 114149132112408 | C14: 徐育美 | D14: 83.0 | E14: 87.4 | F14: 66.0 | G14: 78.0 | H14: 39.0 | I14: 368 | J14: 73.6 | K14: 36.8 | L14: 75.8
A15: 14 | B15: 114149137022732 | C15: 李晓娜 | D15: 70.4 | E15: 78.6 | F15: 80.0 | G15: 77.5 | H15: 38.8 | I15: 364 | J15: 72.8 | K15: 36.4 | L15: 75.2
A16: 15 | B16: 114149113111715 | C16: 孙月 | D16: 72.0 | E16: 81.0 | F16: 75.0 | G16: 76.8 | H16: 38.4 | I16: 367 | J16: 73.4 | K16: 36.7 | L16: 75.1
A17: 16 | B17: 114149113041592 | C17: 韩文辉 | D17: 74.4 | E17: 81.4 | F17: 78.0 | G17: 78.6 | H17: 39.3 | I17: 353 | J17: 70.6 | K17: 35.3 | L17: 74.6
A18: 17 | B18: 114149111640884 | C18: 贾娅楠 | D18: 69.6 | E18: 74.6 | F18: 78.0 | G18: 75.0 | H18: 37.5 | I18: 368 | J18: 73.6 | K18: 36.8 | L18: 74.3
A19: 18 | B19: 114149137012598 | C19: 刘畅 | D19: 74.2 | E19: 78.4 | F19: 76.0 | G19: 76.6 | H19: 38.3 | I19: 356 | J19: 71.2 | K19: 35.6 | L19: 73.9
A20: 19 | B20: 114149137153024 | C20: 吕家怡 | D20: 75.6 | E20: 78.8 | F20: 76.0 | G20: 77.0 | H20: 38.5 | I20: 353 | J20: 70.6 | K20: 35.3 | L20: 73.8
A21: 20 | B21: 114149162133919 | C21: 李璐 | D21: 75.0 | E21: 75.4 | F21: 74.0 | G21: 74.8 | H21: 37.4 | I21: 358 | J21: 71.6 | K21: 35.8 | L21: 73.2
A22: 21 | B22: 114149114131906 | C22: 闫雯静 | D22: 74.8 | E22: 75.0 | F22: 72.5 | G22: 74.0 | H22: 37.0 | I22: 355 | J22: 71.0 | K22: 35.5 | L22: 72.5
A23: 22 | B23: 114149123172370 | C23: 杨文霞 | D23: 76.2 | E23: 80.0 | F23: 69.0 | G23: 74.8 | H23: 37.4 | I23: 350 | J23: 70.0 | K23: 35.0 | L23: 72.4
A24: 23 | B24: 114149141133118 | C24: 郭宛茹 | D24: 64.2 | E24: 68.6 | F24: 77.0 | G24: 71.1 | H24: 35.5 | I24: 350 | J24: 70.0 | K24: 35.0 | L24: 70.5
A25: 24 | B25: 114149165043939 | C25: 阿拉帕提·艾尔肯 | D25: 54.6 | E25: 54.2 | F25: 56.5 | G25: 55.2 | H25: 27.6 | I25: 262 | J25: 52.4 | K25: 26.2 | L25: 53.8

Sheet 外国语言文学第一志愿
A1: 序号 | B1: 考生编号 | C1: 姓名 | D1: 二外成绩 | E1: 笔试成绩 | F1: 面试成绩 | G1: 复试总成绩百分制 | H1: 复试成绩百分制*50% | I1: 初试成绩 | J1: 初试成绩百分制 | K1: 初试成绩百分制*50% | L1: 总成绩 | N1: 备注
A2: 1 | B2: 114149111641347 | C2: 高诗捷 | G2: 92.0 | H2: =G2*0.5 -> 46.0 | I2: 405 | J2: =I2/5 -> 81 | K2: =J2*0.5 -> 40.5 | L2: =H2+K2 -> 86.5 | N2: 参加我院招生宣传，根据协议直接预录取
A3: 2 | B3: 114149137032795 | C3: 吴金超 | G3: 93.5 | H3: 46.8 | I3: 389 | J3: 77.8 | K3: 38.9 | L3: 85.7 | N3: 参加我院招生宣传，根据协议直接预录取
A4: 3 | B4: 114149111641308 | C4: 谢宜霏 | G4: 90.0 | H4: 45.0 | I4: 388 | J4: 77.6 | K4: 38.8 | L4: 83.8 | N4: 参加我院招生宣传，根据协议直接预录取
A5: 9 | B5: 114149111641344 | C5: 刘竹青 | G5: 76.0 | H5: 38.0 | I5: 367 | J5: 73.4 | K5: 36.7 | L5: 74.7 | N5: 参加我院招生宣传，根据协议直接预录取

Sheet 外国语言文学第一批调剂
A1: 序号 | B1: 考生编号 | C1: 姓名 | D1: 二外成绩 | E1: 笔试成绩 | F1: 面试成绩 | G1: 复试总成绩百分制 | H1: 复试成绩百分制*50% | I1: 初试成绩 | J1: 初试成绩百分制 | K1: 初试成绩百分制*50% | L1: 总成绩 | N1: 备注
A2: 1 | B2: 102729000007625 | C2: 赵赟 | D2: 98 | E2: 73 | F2: 88.6 | G2: =D2*0.2+E2*0.4+F2*0.4 -> 84.2 | H2: =G2*0.5 -> 42.1 | I2: 397 | J2: =I2/5 -> 79.4 | K2: =J2*0.5 -> 39.7 | L2: =H2+K2 -> 81.8
A3: 2 | B3: 100559333313053 | C3: 丛庆 | D3: 96 | E3: 59.5 | F3: 91.4 | G3: =D3*0.2+E3*0.4+F3*0.4 -> 79.6 | H3: 39.8 | I3: 396 | J3: 79.2 | K3: 39.6 | L3: 79.4
A4: 3 | B4: 102729000010206 | C4: 刘晓红 | D4: 78 | E4: 76 | F4: 82.4 | G4: =D4*0.2+E4*0.4+F4*0.4 -> 79.0 | H4: 39.5 | I4: 387 | J4: 77.4 | K4: 38.7 | L4: 78.2
A5: 4 | B5: 100329050211011 | C5: 袁琳琳 | D5: 85 | E5: 67 | F5: 84.2 | G5: =D5*0.2+E5*0.4+F5*0.4 -> 77.5 | H5: 38.7 | I5: 394 | J5: 78.8 | K5: 39.4 | L5: 78.1
A6: 5 | B6: 100329050211124 | C6: 李恒艳 | D6: 90 | E6: 79 | F6: 72.2 | G6: =D6*0.2+E6*0.4+F6*0.4 -> 78.5 | H6: 39.2 | I6: 388 | J6: 77.6 | K6: 38.8 | L6: 78.0
A7: 6 | B7: 102729000011687 | C7: 吕若言 | D7: 69 | E7: 56.5 | F7: 87.2 | G7: =D7*0.2+E7*0.4+F7*0.4 -> 71.3 | H7: 35.6 | I7: 373 | J7: 74.6 | K7: 37.3 | L7: 72.9
A8: 7 | B8: 100329050211214 | C8: 李晴晴 | D8: 88 | E8: 51.5 | F8: 81 | G8: =D8*0.2+E8*0.4+F8*0.4 -> 70.6 | H8: 35.3 | I8: 373 | J8: 74.6 | K8: 37.3 | L8: 72.6
A9: 8 | B9: 100329050211211 | C9: 杨硕 | D9: 79 | E9: 43 | F9: 86.4 | G9: =D9*0.2+E9*0.4+F9*0.4 -> 67.6 | H9: 33.8 | I9: 383 | J9: 76.6 | K9: 38.3 | L9: 72.1
